Cogmind - Beta 10.2 @@@ ROGUE MODE // 2021.12.06 @ 18:33:18 Player: DaddyWalrus Result: Destroyed by G-47 Trooper with Particle Gun Performance ------------- Evolutions (0) 0 Regions Visited (1) 200 Robots Destroyed (20) 100 Value Destroyed (360) 360 Prototype IDs (0) 0 Alien Tech Used (0) 0 Bonus (0) 0 TOTAL SCORE: 660 Bonus ------- None Cogmind --------- Core Integrity 0/250 Matter 280/300 Energy 123/125 System Corruption 0% Temperature Cool (156) Movement Rolling (90) Ox1 Location -10/Materials Parts ------- > --- POWER (1) -------- Light Ion Engine > --- PROPULSION (2) --- Wheel Wheel > --- UTILITY (2) ------ Large Storage Unit Improved Terrain Scanner > --- WEAPON (2) ------- Beam Cannon Mining Claw > --- INVENTORY (10) --- Light Ion Engine Hover Unit Hover Unit Sensor Array Signal Interpreter Seismic Analyzer Particle Gun Mini Grenade Launcher Mini Grenade Launcher Peak State ------------ > --- POWER ------------ Light Ion Engine > --- PROPULSION ------- Wheel Wheel > --- UTILITY ---------- Large Storage Unit Improved Terrain Scanner > --- WEAPON ----------- Medium Laser Particle Gun > --- INVENTORY -------- Light Ion Engine Light Treads Wheel Medium Storage Unit Seismic Analyzer Small Laser Beam Cannon Grenade Launcher Grenade Launcher Mining Claw [Rating: 10] Favorites ----------- Power Light Ion Engine Engine Light Ion Engine Propulsion Wheel Treads Light Treads Wheel Wheel Utility Improved Terrain Scanner Device Improved Terrain Scanner Storage Large Storage Unit Weapon Medium Laser Energy Gun Medium Laser Energy Cannon Beam Cannon Ballistic Gun Assault Rifle Slashing Weapon Mining Claw Build | -11 -10 ------- Run | Scr Mat Slots Evolved . | . . Power . | . . Propulsion . | . . Utility . | . . Weapon . | . . Parts Attached 21 | 8 13 Power 3 | 2 1 Engine 3 | 2 1 Core . | . . Reactor . | . . Propulsion 5 | 2 3 Treads 1 | . 1 Leg . | . . Wheel 4 | 2 2 Hover . | . . Flight . | . . Utility 4 | 2 2 Device 1 | 1 . Storage 3 | 1 2 Processor . | . . Hackware . | . . Protection . | . . Artifact . | . . Weapon 9 | 2 7 Energy Gun 6 | 1 5 Energy Cannon 1 | . 1 Ballistic Gun 1 | 1 . Ballistic Cannon . | . . Launcher . | . . Special Weapon . | . . Impact Weapon . | . . Slashing Weapon 1 | . 1 Piercing Weapon . | . . Special Melee Weapon . | . . Unidentified Prototypes . | . . Parts Lost 7 | . 7 Power . | . . Propulsion 2 | . 2 Utility . | . . Weapon 5 | . 5 Highest Loss Streak 6 | . 6 Average Slot Usage (%) 95 | . 95 Engine 14 | . 14 Treads 2 | . 2 Wheel 24 | . 24 Device 14 | . 14 Storage 14 | . 14 Energy Gun 20 | . 20 Ballistic Gun 3 | . 3 Naked Turns . | . . Heaviest Build 26 | 13 26 Greatest Support 26 | 26 26 Greatest Overweight (x) 1 | . 1 Average Overweight (x) . | . . Largest Inventory Capacity 10 | 6 10 Average Capacity 8 | 5 9 Most Carried 10 | 6 10 Average Carried 7 | 3 7 Final Capacity 10 | 6 10 Final Carried 9 | 6 9 Class Distribution -------------------- 53% | Scavenger-Mutant 46% | Mutant Dominant Class ---------------- Scavenger-Mutant | -10/Materials Resources | -11 -10 ----------- Run | Scr Mat Matter Collected 653 | 236 417 Remotely . | . . Salvage Created 728 | 83 645 Parts 42 | 6 36 Haulers Intercepted . | . . Recyclers Shooed 3 | 1 2 Parts Field Recycled . | . . Retrieved Matter . | . . Parts Self-Destructed . | . . Prevented . | . . Kills | -11 -10 ------- Run | Scr Mat Combat Hostiles Destroyed 9 | . 9 Guns 8 | . 8 Cannons 1 | . 1 Classes Destroyed 7 | 2 5 Worker 1 | . 1 Tunneler 2 | 1 1 Recycler 4 | 1 3 Operator 1 | . 1 Watcher 3 | . 3 Swarmer 3 | . 3 Grunt 6 | . 6 Best Kill Streak 4 | 1 4 Combat Bots Only 4 | . 4 Max Kills in Single Turn 1 | 1 1 Gunslinging . | . . Exploded . | . . Melee . | . . Uniques/NPCs Destroyed . | . . Combat | -11 -10 -------- Run | Scr Mat Damage Taken 866 | . 866 Core 257 | . 257 Absorbed by Shields . | . . Core Remaining (%) 100 | 100 . Volleys Fired 95 | 9 86 Largest 2 | 2 2 Hottest 125 | 60 125 Shots Fired 160 | 18 142 Gun 157 | 18 139 Cannon 3 | . 3 Launcher . | . . Special . | . . Kinetic 31 | 9 22 Thermal 129 | 9 120 Explosive . | . . Electromagnetic . | . . Robot Hit Streak 14 | 11 14 Robot Miss Streak 5 | 3 5 Penetration Max . | . . Secondary Targets 2 | . 2 Max Gunslinging Chain 1 | . 1 Shots Hit Robots 95 | 14 81 Core Hits 34 | 3 31 Critical Hits . | . . Critical Kills . | . . Critical Parts Destroyed . | . . Melee Attacks 1 | . 1 Impact . | . . Slashing 1 | . 1 Piercing . | . . Sneak Attacks . | . . Combat Hostiles . | . . Follow-up Attacks . | . . Damage Inflicted 1211 | 159 1052 Guns 1194 | 159 1035 Cannons 17 | . 17 Explosions . | . . Melee . | . . Ramming . | . . Kinetic 251 | 91 160 Thermal 960 | 68 892 Explosive . | . . Electromagnetic . | . . Impact . | . . Slashing . | . . Piercing . | . . Highest Corruption . | . . Average Corruption . | . . Corruption Purged . | . . Overload Shots . | . . Overflow Damage . | . . Projectiles . | . . Explosions . | . . Melee . | . . Knockbacks . | . . Impact . | . . Kinetic . | . . Secondary . | . . Self-Inflicted Damage . | . . Shots . | . . Rammed . | . . Targets Rammed . | . . Kicked . | . . Crushed . | . . Highest Temperature 332 | . 332 Average Temperature 105 | . 105 Received Heat Transfer 312 | . 312 Effects 1 | . 1 Energy Bleed 1 | . 1 Siege Activations . | . . Robots Corrupted . | . . Combat Hostiles . | . . Parts Fried . | . . Impact Corruptions . | . . Robots Melted . | . . Combat Hostiles . | . . Parts Melted 2 | . 2 Heat Transferred 2620 | 150 2470 Parts Sabotaged . | . . Parts Stolen . | . . Parts Stripped . | . . Power Chain Reactions . | . . Missiles Intercepted . | . . Alert | -11 -10 ------- Run | Scr Mat Peak Influence 181 | 10 181 Initial 6 | . 6 Average 46 | 2 52 Maximum Alert Level . | . . Low Security (%) 100 | 100 100 Level 1 . | . . Level 2 . | . . Level 3 . | . . Level 4 . | . . Level 5 . | . . High Security . | . . Max Security . | . . Squads Dispatched 1 | . 1 Investigation . | . . Extermination . | . . Reinforcement 1 | . 1 Assault . | . . Garrison . | . . Intercept . | . . Construction Impeded . | . . Haulers Reinforced . | . . Stealth | -11 -10 --------- Run | Scr Mat Distress Signals 1 | . 1 Communications Jammed . | . . Distress Signals . | . . Times Spotted 22 | . 22 Peak Tracking Total 5 | . 5 Tactical Retreats 2 | . 2 Traps | -11 -10 ------- Run | Scr Mat Traps Triggered . | . . Indirectly . | . . Trap Hack Attempts . | . . Triggered . | . . Disarmed . | . . Reprogrammed . | . . Reused . | . . Traps Extracted . | . . Installed . | . . Triggered . | . . Machines | -11 -10 ---------- Run | Scr Mat Machines Disabled 1 | . 1 Max in Single Turn 1 | . 1 Machines Sabotaged . | . . Garrisons Compromised . | . . Overloaded Fab Kills . | . . Fab Network Shutdowns . | . . Hacking | -11 -10 --------- Run | Scr Mat Machines Accessed 2 | . 2 Terminals 1 | . 1 Fabricators . | . . Repair Stations . | . . Recycling Units 1 | . 1 Scanalyzers . | . . Garrison Access . | . . Total Hacks 6 | . 6 Successful 3 | . 3 Failed 3 | . 3 Catastrophic . | . . Database Lockouts . | . . Manual 4 | . 4 Terminals 4 | . 4 Fabricators . | . . Repair Stations . | . . Recycling Units 2 | . 2 Scanalyzers . | . . Garrison Access . | . . Terminal Hacks 1 | . 1 Unreport Threat 1 | . 1 Fabricator Hacks . | . . Repair Station Hacks . | . . Recycling Unit Hacks 2 | . 2 Report Inventory 1 | . 1 Retrieve Components 1 | . 1 Scanalyzer . | . . Garrison Access Hacks . | . . Unauthorized Hacks . | . . Terminals . | . . Fabricators . | . . Repair Stations . | . . Recycling Units . | . . Scanalyzers . | . . Garrison Access . | . . Data Cores Recovered . | . . Used . | . . Hacking Detections 2 | . 2 Full Trace Events 1 | . 1 Feedback Events . | . . Feedback Blocked . | . . Robot Schematics Acquired . | . . Robots Built . | . . Matter . | . . Time . | . . Total Robot Build Rating . | . . Part Schematics Acquired . | . . Parts Built . | . . Matter . | . . Time . | . . Total Part Build Rating . | . . Parts Repaired . | . . Time . | . . Parts Recycled . | . . Recycled Matter . | . . Retrieved Matter . | . . Retrieved Components 10 | . 10 Parts Scanalyzed . | . . Part Schematics Acquired . | . . Parts Damaged . | . . Bothacking | -11 -10 ------------ Run | Scr Mat Used RIF Installer . | . . Robots Hacked . | . . Non-combat . | . . Combat . | . . Robot Hacks Applied . | . . Relay Couplers Released . | . . Robots Rewired . | . . Allies Hacked . | . . Hacks Repelled . | . . Allies | -11 -10 -------- Run | Scr Mat Total Allies . | . . Largest Group . | . . Highest-Rated Group . | . . Highest-Rated Ally . | . . Total Orders . | . . Ally Attacks . | . . Total Damage . | . . Kills . | . . Allies Corrupted . | . . Allies Melted . | . . Intel | -11 -10 ------- Run | Scr Mat Robot Analysis Total . | . . Derelict Logs Recovered . | . . Drone Launches . | . . Drone Recoveries . | . . Exploration | -11 -10 ------------- Run | Scr Mat Turns Passed 923 | 107 816 Spaces Moved 636 | 71 565 Core 7 | 7 . Treads 3 | . 3 Legs . | . . Wheels 626 | 64 562 Hover . | . . Flight . | . . Fastest Speed 50 | 50 80 Average Speed 89 | 86 89 Slowest Speed 160 | 100 160 Overloaded Moves . | . . Propulsion Burnouts . | . . Robots Hopped . | . . Cave-ins Triggered . | . . Exploration Rate (%) 35 | 4 66 Regions Visited 1 Branch Regions . Pre-discovered Areas . | . . Known Exits Taken . | . . Unknown Exits Taken 1 | 1 . Scrap Searched . | . . Spaces Dug . | . . Terrain Destroyed . | . . Melee . | . . Projectile . | . . AOE . | . . Terrain Rammed . | . . Walls Destroyed . | . . Machines Disabled . | . . Actions | -11 -10 --------- Run | Scr Mat Total 832 | 98 734 Wait 42 | . 42 Move 635 | 70 565 Hop . | . . Pick Up 23 | 8 15 Fast Attach 9 | 7 2 Attach 6 | . 6 Detach 1 | . 1 Swap 6 | 1 5 Drop 14 | 3 11 Fire 95 | 9 86 Melee 1 | . 1 Ram . | . . Kick . | . . Crush . | . . Escape Stasis . | . . Rewire . | . . Trap . | . . Miscellaneous . | . . Route ------- -11/Scrapyard -10/Materials (discovered 1 exit: [*Min]) History --------- Turn | Location | Event 16 | -11/Scrapyard | Discovered new exit (range 15) 108 | -11/Scrapyard | Entered Materials 287 | -10/Materials | Core integrity fell below 50% 315 | -10/Materials | Build established: Mutant 338 | -10/Materials | Lost 6 parts (2n4w) 655 | -10/Materials | Discovered new exit (range 16) 718 | -10/Materials | Build established: Scavenger-Mutant 898 | -10/Materials | Core integrity fell below 20% 924 | -10/Materials | Destroyed by G-47 Trooper with Particle Gun Last Messages --------------- 00858_ W-16 Scout destroyed. 00859_ K-01 Serf collects debris. 00864_ G-34 Mercenary destroyed. 00866_ K-01 Serf collects debris. 00868_ Acquired 34 matter. 00869_ Acquired 17 matter. 00871_ K-01 Serf collects debris. 00876_ U-05 Engineer builds a Door. 00878_ K-01 Serf collects debris. 00878_ Datajack melted. 00878_ O-16 Technician destroyed. 00881_ K-01 Serf collects debris. 00885_ Dropped Hcp. Matter Pod. 00885_ Acquired Hover Unit. 00887_ K-01 Serf collects debris. 00901_ Med. Laser destroyed. 00903_ K-01 Serf collects debris. 00904_ G-34 Mercenary destroyed. 00915_ K-01 Serf collects debris. 00923_ U-05 Engineer builds a Door. Map ----- +----------------------------------------------------+ | ?????????????????????????????????????????????????? | | ?????????????????????????????????????????????????? | | ?????????????????????????????????????????????????? | | ?????????????????????????????????????????????????? | | ??#??????????????????????????????????????????????? | | ?????????????????????????????????????????????????? | | ?????????????????????????????????????????????????? | | ?????????????????????????????????????????????????? | | ?????????????????????????????????????????????????? | | #????#???????????????????????????????????????????? | | ?????????????????????? ??????????????????????????? | | ??#??????????????????????????????????????????????? | | ????????????????????????#+###????????????????????? | | ??????###??????????????? +???????#????????????? | | ????? ##??????????#??? ##???????????????????? | | ??""" #?????##???????"" #????????????????????? | | """"" #??????????????"" #?????#??????????????? | | """"" #???????????#??"" [ #????????????????????? | | """"" #??????##???# "" % #????????????????????? | | """ #???????????# """ ! /? ??????????????????? | | #?????????#?# """ #??#???#?????????????? | | #???????????# """ #????????????????????? | | #????????????? " #?????#??????????????? | | ####+####??#########???? #######??#???????????? | | ##### #######g## #?????? ???????? | | @ #?????????? ???? | | < T #??????????????? | | u #??????????????? | | ##### ###+###+## #??"?"?????????? | | ###### "!"|" ## ##k ##??????????????? | | # #""!"|""## ! ## #######+###?????? | | + ########## ## %! #?????? | | # #???#????#""""" + %**! + | | # #?????#?##""""" ##! = """ # """? | | ###### #?#?#??###""""" ###### """ #? ???? | | #???## #???#??#?#""""" # ## """ #? ???? | | ##?#?# #?#?#?#??#""""" # ## #?????? | | #????# #?#???#??#""""" # ## #?????? | | ##???# #??#?#?#?#""""" # " ## """ #?????# | | #????############?## # T ## """% #?????? | | #?#??????# ##?##+####### " ##* """ ##????? | | ########## #??## #?????# ## #?????? | | +% ##### ########+###[ ##????? | | = #""" + = = #???#? | | % % #""" # #????? | | % * #""" # #????? | | ="""# + ##+###### ## ##???? | | =!Y"####### # !# ## ]] #???? | | =!"""####### # # // ""##!! !!#???? | | ! # ! + / T"##!!]]!!##??# | +----------------------------------------------------+ Best States ------------- Heat Dissipation 25 Energy Generation 10 Energy Capacity 250 Matter Stores 300 Matter Capacity 300 Sight Range 16 Terrain Scan Range 16 Terrain Scan Density 10 Evasion (%) 44 Recoil Reduction 1 Item Schematics ----------------- None Robot Schematics ------------------ None Fabricated ------------ Nothing Alien Tech Used ----------------- None Achievements -------------- None Challenges ------------ None Game ------ Seed TerrainGaussTerminator Manual? 0 Play Time 00:14:17 Cumulative 73.6 hours Start 2021.12.06 @ 17:37:15 End 2021.12.06 @ 18:33:18 Sessions 1 Manual Loads 0 Difficulty Rogue Special Mode None Game No. 23 Rogue 23 Adventurer 0 Explorer 0 Win Type - Total 1 Types 1/0/0/0/0/0/0/0/0 Lore% 33 Gallery% 50 Achievement% 39 Wizard Run 0 Options --------- ASCII 1 Keyboard 1 Movement Numpad Keybinds 0 Fullscreen 1 Font 36/Smallcaps Map View 76x50 Tactical HUD 1 Map Filters NONE Filters NONE Steam 1 RUN: 82786238-d631-4d8a-85e3-5f4e786deba6